[Event "Masters Tournament (MTO)"]
[Site "Biel, Switzerland"]
[Date "2026.07.13"]
[Round "1.6"]
[White "Iafelice, Vincenzo"]
[Black "Kozak, Adam"]
[Result "0-1"]
[TimeControl "100+30+30sec/move"]
[WhiteTitle "-"]
[BlackTitle "-"]
[WhiteFideId "810541"]
[BlackFideId "753246"]
[WhiteElo "2086"]
[BlackElo "2531"]

1. e4 {[%clk 01:40:58]} {[%emt 00:00:02]} e5 {[%clk 01:40:53]} {[%emt
00:00:07]} 2. Nf3 {[%clk 01:41:20]} {[%emt 00:00:07]} Nc6 {[%clk 01:41:17]}
{[%emt 00:00:06]} 3. Bc4 {[%clk 01:41:16]} {[%emt 00:00:34]} Bc5 {[%clk
01:40:23]} {[%emt 00:01:23]} 4. c3 {[%clk 01:41:19]} {[%emt 00:00:27]} Nf6
{[%clk 01:39:45]} {[%emt 00:01:08]} 5. d3 {[%clk 01:41:38]} {[%emt 00:00:12]}
d6 {[%clk 01:39:41]} {[%emt 00:00:34]} 6. O-O {[%clk 01:41:41]} {[%emt
00:00:26]} a5 {[%clk 01:38:51]} {[%emt 00:01:20]} 7. Re1 {[%clk 01:39:02]}
{[%emt 00:03:08]} Ba7 {[%clk 01:37:46]} {[%emt 00:01:35]} 8. Nbd2 {[%clk
01:36:24]} {[%emt 00:03:08]} O-O {[%clk 01:37:48]} {[%emt 00:00:28]} 9. Nf1
{[%clk 01:34:06]} {[%emt 00:02:48]} Be6 {[%clk 01:37:48]} {[%emt 00:00:31]} 10.
Bb5 {[%clk 01:31:22]} {[%emt 00:03:14]} Ne7 {[%clk 01:38:04]} {[%emt 00:00:14]}
11. Ng3 {[%clk 01:30:41]} {[%emt 00:01:11]} c6 {[%clk 01:29:45]} {[%emt
00:08:49]} 12. Ba4 {[%clk 01:31:03]} {[%emt 00:00:08]} Ng6 {[%clk 01:29:32]}
{[%emt 00:00:42]} 13. Be3 {[%clk 01:11:11]} {[%emt 00:20:22]} Bxe3 {[%clk
01:20:10]} {[%emt 00:09:52]} 14. Rxe3 {[%clk 01:11:34]} {[%emt 00:00:08]} h5
{[%clk 01:16:08]} {[%emt 00:04:33]} 15. h3 {[%clk 00:57:46]} {[%emt 00:14:18]}
h4 {[%clk 00:46:41]} {[%emt 00:29:58]} 16. Nf5 {[%clk 00:44:09]} {[%emt
00:14:06]} Bxf5 {[%clk 00:45:55]} {[%emt 00:01:16]} 17. exf5 {[%clk 00:44:32]}
{[%emt 00:00:07]} Nf4 {[%clk 00:46:20]} {[%emt 00:00:04]} 18. Bc2 {[%clk
00:33:19]} {[%emt 00:11:43]} Re8 {[%clk 00:40:59]} {[%emt 00:05:52]} 19. Qd2
{[%clk 00:26:41]} {[%emt 00:07:07]} N6d5 {[%clk 00:35:14]} {[%emt 00:06:15]} 20.
Re4 {[%clk 00:22:23]} {[%emt 00:04:48]} Qf6 {[%clk 00:28:43]} {[%emt 00:07:00]}
21. Kh2 {[%clk 00:14:47]} {[%emt 00:08:06]} Qxf5 {[%clk 00:21:26]} {[%emt
00:07:48]} 22. Nxh4 {[%clk 00:13:21]} {[%emt 00:01:56]} Qg5 {[%clk 00:18:20]}
{[%emt 00:03:36]} 23. g3 {[%clk 00:13:28]} {[%emt 00:00:23]} Nxh3 {[%clk
00:18:43]} {[%emt 00:00:07]} 24. Qxg5 {[%clk 00:11:02]} {[%emt 00:02:56]} Nxg5
{[%clk 00:19:11]} {[%emt 00:00:02]} 25. Rg4 {[%clk 00:11:18]} {[%emt 00:00:14]}
Ne6 {[%clk 00:17:16]} {[%emt 00:02:24]} 26. Nf5 {[%clk 00:11:30]} {[%emt
00:00:19]} Rad8 {[%clk 00:17:00]} {[%emt 00:00:46]} 27. Kg2 {[%clk 00:04:48]}
{[%emt 00:07:12]} Nf6 {[%clk 00:14:31]} {[%emt 00:03:00]} 28. Rh4 {[%clk
00:04:23]} {[%emt 00:00:54]} g6 {[%clk 00:14:39]} {[%emt 00:00:23]} 29. Ne3
{[%clk 00:04:31]} {[%emt 00:00:22]} d5 {[%clk 00:14:27]} {[%emt 00:00:42]} 30.
Re1 {[%clk 00:03:17]} {[%emt 00:01:44]} Kg7 {[%clk 00:14:04]} {[%emt 00:00:53]}
31. f3 {[%clk 00:03:10]} {[%emt 00:00:37]} Rh8 {[%clk 00:13:21]} {[%emt
00:01:14]} 32. Rxh8 {[%clk 00:03:27]} {[%emt 00:00:12]} Rxh8 {[%clk 00:13:44]}
{[%emt 00:00:06]} 33. Nf1 {[%clk 00:03:01]} {[%emt 00:00:56]} Nd7 {[%clk
00:13:57]} {[%emt 00:00:17]} 34. Nd2 {[%clk 00:03:19]} {[%emt 00:00:12]} Kf6
{[%clk 00:12:55]} {[%emt 00:01:32]} 35. Nb3 {[%clk 00:02:58]} {[%emt 00:00:51]}
Ra8 {[%clk 00:12:19]} {[%emt 00:01:07]} 36. Nd2 {[%clk 00:02:43]} {[%emt
00:00:44]} Ra6 {[%clk 00:08:05]} {[%emt 00:04:44]} 37. Kf2 {[%clk 00:01:55]}
{[%emt 00:01:17]} Rb6 {[%clk 00:07:50]} {[%emt 00:00:46]} 38. Rb1 {[%clk
00:02:12]} {[%emt 00:00:13]} Ke7 {[%clk 00:08:12]} {[%emt 00:00:07]} 39. Bd1
{[%clk 00:02:15]} {[%emt 00:00:27]} Ra6 {[%clk 00:06:44]} {[%emt 00:01:59]} 40.
Be2 {[%clk 00:02:05]} {[%emt 00:00:39]} Ra8 {[%clk 00:06:14]} {[%emt 00:01:01]}
41. Rh1 {[%clk 00:01:47]} {[%emt 00:01:25]} b5 {[%clk 00:04:40]} {[%emt
00:02:04]} 42. Rh4 {[%clk 00:00:52]} {[%emt 00:01:25]} Ndc5 {[%clk 00:03:24]}
{[%emt 00:01:47]} 43. Rh1 {[%clk 00:26:28]} {[%emt 00:04:53]} Na4 {[%clk
00:31:29]} {[%emt 00:02:26]} 44. Rb1 {[%clk 00:26:50]} {[%emt 00:00:07]} b4
{[%clk 00:31:33]} {[%emt 00:00:26]} 45. c4 {[%clk 00:22:06]} {[%emt 00:05:14]}
Rh8 {[%clk 00:29:20]} {[%emt 00:02:43]} 46. Nf1 {[%clk 00:21:44]} {[%emt
00:00:52]} Kd6 {[%clk 00:28:50]} {[%emt 00:01:00]} 47. Bd1 {[%clk 00:20:54]}
{[%emt 00:01:19]} Nac5 {[%clk 00:28:42]} {[%emt 00:00:39]} 48. Be2 {[%clk
00:21:03]} {[%emt 00:00:20]} Nd4 {[%clk 00:28:29]} {[%emt 00:00:44]} 49. Rd1
{[%clk 00:20:26]} {[%emt 00:01:07]} f5 {[%clk 00:27:57]} {[%emt 00:01:02]} 50.
Rd2 {[%clk 00:20:25]} {[%emt 00:00:31]} f4 {[%clk 00:27:34]} {[%emt 00:00:53]}
51. Bd1 {[%clk 00:20:43]} {[%emt 00:00:12]} g5 {[%clk 00:26:57]} {[%emt
00:01:08]} 52. Kg2 {[%clk 00:20:55]} {[%emt 00:00:17]} Nf5 {[%clk 00:26:47]}
{[%emt 00:00:41]} 53. cxd5 {[%clk 00:19:56]} {[%emt 00:01:29]} cxd5 {[%clk
00:27:05]} {[%emt 00:00:11]} 54. Be2 {[%clk 00:20:02]} {[%emt 00:00:25]} Ne6
{[%emt 00:01:38]} 0-1

[Event "Masters Tournament (MTO)"]
[Site "Biel, Switzerland"]
[Date "2026.07.13"]
[Round "1.7"]
[White "Gopal, G.N."]
[Black "Yasaswi, Krishna Bommi"]
[Result "1-0"]
[TimeControl "100+30+30sec/move"]
[WhiteTitle "-"]
[BlackTitle "-"]
[WhiteFideId "5015693"]
[BlackFideId "33368783"]
[WhiteElo "2529"]
[BlackElo "2085"]

1. e4 {[%clk 01:40:57]} {[%emt 00:00:03]} c5 {[%clk 01:40:52]} {[%emt
00:00:08]} 2. Nf3 {[%clk 01:41:23]} {[%emt 00:00:04]} e6 {[%clk 01:41:18]}
{[%emt 00:00:04]} 3. d4 {[%clk 01:41:43]} {[%emt 00:00:11]} cxd4 {[%clk
01:41:42]} {[%emt 00:00:05]} 4. Nxd4 {[%clk 01:42:09]} {[%emt 00:00:04]} Nc6
{[%clk 01:42:04]} {[%emt 00:00:08]} 5. Nc3 {[%clk 01:42:27]} {[%emt 00:00:12]}
Qc7 {[%clk 01:42:28]} {[%emt 00:00:05]} 6. Be3 {[%clk 01:41:38]} {[%emt
00:01:19]} a6 {[%clk 01:42:52]} {[%emt 00:00:06]} 7. a3 {[%clk 01:40:47]}
{[%emt 00:01:21]} b5 {[%clk 01:39:22]} {[%emt 00:03:59]} 8. Nxc6 {[%clk
01:41:10]} {[%emt 00:00:08]} Qxc6 {[%clk 01:38:36]} {[%emt 00:01:16]} 9. Be2
{[%clk 01:41:31]} {[%emt 00:00:09]} Bb7 {[%clk 01:37:18]} {[%emt 00:01:47]} 10.
O-O {[%clk 01:41:48]} {[%emt 00:00:13]} Nf6 {[%clk 01:35:51]} {[%emt 00:01:57]}
11. Bf3 {[%clk 01:28:44]} {[%emt 00:13:35]} e5 {[%clk 01:21:34]} {[%emt
00:14:46]} 12. a4 {[%clk 01:08:42]} {[%emt 00:20:33]} Bc5 {[%clk 01:09:34]}
{[%emt 00:12:30]} 13. Re1 {[%clk 00:48:39]} {[%emt 00:20:34]} Bxe3 {[%clk
00:54:37]} {[%emt 00:15:27]} 14. Rxe3 {[%clk 00:49:07]} {[%emt 00:00:02]} Qb6
{[%clk 00:49:04]} {[%emt 00:06:02]} 15. Nd5 {[%clk 00:43:29]} {[%emt 00:06:09]}
Nxd5 {[%clk 00:44:53]} {[%emt 00:04:41]} 16. exd5 {[%clk 00:43:58]} {[%emt
00:00:01]} d6 {[%clk 00:44:52]} {[%emt 00:00:30]} 17. Rb3 {[%clk 00:39:50]}
{[%emt 00:04:38]} Rc8 {[%clk 00:37:10]} {[%emt 00:08:12]} 18. axb5 {[%clk
00:35:13]} {[%emt 00:05:07]} axb5 {[%clk 00:37:32]} {[%emt 00:00:08]} 19. Qd3
{[%clk 00:34:24]} {[%emt 00:01:19]} Rc5 {[%clk 00:36:34]} {[%emt 00:01:28]} 20.
c4 {[%clk 00:33:00]} {[%emt 00:01:54]} O-O {[%clk 00:33:44]} {[%emt 00:03:20]}
21. Rxb5 {[%clk 00:33:16]} {[%emt 00:00:14]} Rxb5 {[%clk 00:34:02]} {[%emt
00:00:12]} 22. cxb5 {[%clk 00:33:45]} {[%emt 00:00:01]} f5 {[%clk 00:33:07]}
{[%emt 00:01:24]} 23. Be2 {[%clk 00:32:30]} {[%emt 00:01:45]} e4 {[%clk
00:30:38]} {[%emt 00:02:59]} 24. Qe3 {[%clk 00:14:08]} {[%emt 00:18:53]} Qxe3
{[%clk 00:22:09]} {[%emt 00:08:58]} 25. fxe3 {[%clk 00:14:37]} {[%emt
00:00:01]} Rc8 {[%clk 00:20:45]} {[%emt 00:01:54]} 26. b3 {[%clk 00:12:28]}
{[%emt 00:02:39]} Bxd5 {[%clk 00:18:21]} {[%emt 00:02:54]} 27. Rd1 {[%clk
00:12:58]} Bxb3 {[%clk 00:15:53]} {[%emt 00:02:57]} 28. Rxd6 {[%clk 00:13:26]}
{[%emt 00:00:02]} Rb8 {[%clk 00:14:18]} {[%emt 00:02:06]} 29. Kf2 {[%clk
00:10:48]} {[%emt 00:03:08]} Kf7 {[%clk 00:12:31]} {[%emt 00:02:16]} 30. h4
{[%clk 00:10:41]} {[%emt 00:00:37]} Ke7 {[%clk 00:09:33]} {[%emt 00:03:28]} 31.
Rd4 {[%clk 00:07:14]} {[%emt 00:03:57]} Ke6 {[%clk 00:05:37]} {[%emt 00:04:25]}
32. Kg3 {[%clk 00:05:23]} {[%emt 00:02:21]} Rc8 {[%clk 00:04:13]} {[%emt
00:01:54]} 33. b6 {[%clk 00:02:34]} {[%emt 00:03:20]} Rb8 {[%clk 00:02:47]}
{[%emt 00:01:56]} 34. Rb4 {[%clk 00:02:48]} {[%emt 00:00:17]} Bd5 {[%clk
00:01:31]} {[%emt 00:01:45]} 35. Kf4 {[%clk 00:02:13]} {[%emt 00:01:04]} Bc6
{[%clk 00:01:28]} {[%emt 00:00:34]} 36. Rb2 {[%clk 00:02:04]} {[%emt 00:00:39]}
Kf6 {[%clk 00:01:30]} {[%emt 00:00:28]} 37. Ba6 {[%clk 00:01:10]} {[%emt
00:01:24]} Bb7 {[%clk 00:01:43]} {[%emt 00:00:16]} 38. Bxb7 {[%clk 00:00:50]}
{[%emt 00:00:51]} Rxb7 {[%clk 00:02:08]} {[%emt 00:00:05]} 39. g4 {[%clk
00:01:03]} {[%emt 00:00:17]} g6 {[%clk 00:01:31]} {[%emt 00:01:06]} 40. gxf5
{[%clk 00:01:05]} {[%emt 00:00:29]} gxf5 {[%clk 00:01:55]} {[%emt 00:00:07]} 41.
Rb5 {[%clk 00:01:11]} {[%emt 00:00:24]} Ke6 {[%clk 00:28:38]} {[%emt 00:03:46]}
42. Re5+ {[%clk 00:20:19]} {[%emt 00:11:22]} Kd7 {[%clk 00:28:59]} {[%emt
00:00:09]} 43. Rxf5 {[%clk 00:20:39]} {[%emt 00:00:11]} Rxb6 {[%clk 00:29:23]}
{[%emt 00:00:05]} 44. Rf7+ {[%clk 00:21:03]} {[%emt 00:00:05]} Ke6 {[%clk
00:26:53]} {[%emt 00:03:00]} 45. Rxh7 {[%clk 00:21:29]} {[%emt 00:00:04]} Rb4
{[%clk 00:26:50]} {[%emt 00:00:33]} 46. Rh6+ {[%clk 00:18:48]} {[%emt
00:03:12]} Kf7 {[%clk 00:23:07]} {[%emt 00:04:12]} 47. Rh5 {[%clk 00:17:27]}
{[%emt 00:01:51]} Kg6 {[%clk 00:21:12]} {[%emt 00:02:24]} 48. Re5 {[%clk
00:16:41]} {[%emt 00:01:17]} Rb1 {[%clk 00:18:37]} {[%emt 00:03:05]} 49. h5+
{[%clk 00:13:26]} {[%emt 00:03:45]} Kf6 {[%clk 00:17:16]} {[%emt 00:01:51]} 50.
Ra5 {[%clk 00:13:08]} {[%emt 00:00:48]} Rb4 {[%clk 00:16:19]} {[%emt 00:01:27]}
51. Ra7 {[%clk 00:12:47]} {[%emt 00:00:52]} Rb1 {[%clk 00:14:08]} {[%emt
00:02:41]} 52. h6 {[%clk 00:12:10]} {[%emt 00:01:07]} Rh1 {[%clk 00:13:48]}
{[%emt 00:00:49]} 53. Kxe4 {[%clk 00:11:07]} {[%emt 00:01:33]} Rh5 {[%clk
00:13:54]} {[%emt 00:00:24]} 54. Ra6+ {[%clk 00:10:59]} {[%emt 00:00:39]} Kf7
{[%clk 00:13:38]} {[%emt 00:00:45]} 55. Kd4 {[%clk 00:11:25]} {[%emt 00:00:05]}
Ke7 {[%clk 00:13:38]} {[%emt 00:00:30]} 56. e4 {[%clk 00:11:37]} {[%emt
00:00:17]} Kf7 {[%clk 00:13:54]} {[%emt 00:00:14]} 57. e5 {[%clk 00:11:03]}
{[%emt 00:01:04]} Rh1 {[%clk 00:14:12]} {[%emt 00:00:12]} 58. Rf6+ {[%clk
00:10:45]} {[%emt 00:00:49]} Ke7 {[%clk 00:14:22]} {[%emt 00:00:20]} 59. Ke4
{[%clk 00:10:26]} {[%emt 00:00:48]} Re1+ {[%clk 00:13:40]} {[%emt 00:01:12]} 60.
Kf5 {[%clk 00:09:30]} {[%emt 00:01:26]} Rf1+ {[%clk 00:13:31]} {[%emt
00:00:38]} 61. Kg6 {[%clk 00:09:20]} {[%emt 00:00:41]} Rg1+ {[%clk 00:13:09]}
{[%emt 00:00:52]} 62. Kh7 {[%clk 00:09:33]} {[%emt 00:00:17]} Rg5 {[%clk
00:13:17]} {[%emt 00:00:22]} 63. Rg6 {[%clk 00:09:53]} {[%emt 00:00:10]} Rxe5
{[%clk 00:12:51]} {[%emt 00:00:57]} 64. Kg7 {[%clk 00:10:19]} {[%emt 00:00:03]}
Kd7 {[%clk 00:12:41]} {[%emt 00:00:40]} 65. h7 {[%clk 00:10:42]} {[%emt
00:00:07]} Re7 {[%clk 00:13:06]} {[%emt 00:00:04]} 66. Kh6 {[%clk 00:11:09]}
{[%emt 00:00:04]} 1-0

[Event "Masters Tournament (MTO)"]
[Site "Biel, Switzerland"]
[Date "2026.07.13"]
[Round "1.8"]
[White "Bucher, Dominic"]
[Black "Alexakis, Dimitris"]
[Result "0-1"]
[TimeControl "100+30+30sec/move"]
[WhiteTitle "-"]
[BlackTitle "-"]
[WhiteFideId "1353144"]
[BlackFideId "4277023"]
[WhiteElo "2078"]
[BlackElo "2525"]

1. e4 {[%clk 01:40:56]} {[%emt 00:00:03]} c5 {[%clk 01:40:52]} {[%emt
00:00:08]} 2. d4 {[%clk 01:41:15]} {[%emt 00:00:11]} cxd4 {[%clk 01:41:12]}
{[%emt 00:00:11]} 3. c3 {[%clk 01:41:39]} {[%emt 00:00:06]} dxc3 {[%clk
01:39:14]} {[%emt 00:02:28]} 4. Nxc3 {[%clk 01:42:01]} {[%emt 00:00:08]} Nc6
{[%clk 01:39:28]} {[%emt 00:00:16]} 5. Nf3 {[%clk 01:42:16]} {[%emt 00:00:14]}
d6 {[%clk 01:39:30]} {[%emt 00:00:29]} 6. Bc4 {[%clk 01:42:27]} {[%emt
00:00:19]} e6 {[%clk 01:39:40]} {[%emt 00:00:20]} 7. O-O {[%clk 01:42:37]}
{[%emt 00:00:19]} Nf6 {[%clk 01:37:44]} {[%emt 00:02:26]} 8. Qe2 {[%clk
01:40:57]} {[%emt 00:02:10]} a6 {[%clk 01:31:31]} {[%emt 00:06:43]} 9. Rd1
{[%clk 01:35:24]} {[%emt 00:06:02]} Qc7 {[%clk 01:24:58]} {[%emt 00:07:04]} 10.
Be3 {[%clk 01:28:40]} {[%emt 00:07:13]} Be7 {[%clk 01:20:58]} {[%emt 00:04:31]}
11. Rac1 {[%clk 01:23:32]} {[%emt 00:05:39]} O-O {[%clk 01:18:56]} {[%emt
00:02:32]} 12. h3 {[%clk 01:12:51]} {[%emt 00:11:11]} Nd7 {[%clk 00:56:15]}
{[%emt 00:23:11]} 13. Nd4 {[%clk 00:58:17]} {[%emt 00:15:04]} Bf6 {[%clk
00:44:20]} {[%emt 00:12:25]} 14. Bb3 {[%clk 00:41:44]} {[%emt 00:17:03]} Nc5
{[%clk 00:40:21]} {[%emt 00:04:29]} 15. Ba4 {[%clk 00:31:01]} {[%emt 00:11:13]}
Nxa4 {[%clk 00:36:21]} {[%emt 00:04:30]} 16. Nxa4 {[%clk 00:31:15]} {[%emt
00:00:16]} Bxd4 {[%clk 00:35:53]} {[%emt 00:00:58]} 17. Kf1 {[%emt 00:05:46]}
0-1

[Event "Masters Tournament (MTO)"]
[Site "Biel, Switzerland"]
[Date "2026.07.13"]
[Round "1.9"]
[White "Gloeckler, Christian"]
[Black "Gerrits, Augustin"]
[Result "1-0"]
[TimeControl "100+30+30sec/move"]
[WhiteTitle "-"]
[BlackTitle "-"]
[WhiteFideId "34608966"]
[BlackFideId "285358"]
[WhiteElo "2506"]
[BlackElo "2072"]

1. Nf3 {[%clk 01:40:58]} {[%emt 00:00:03]} d5 {[%clk 01:40:37]} {[%emt
00:00:22]} 2. e3 {[%clk 01:41:20]} {[%emt 00:00:07]} Nf6 {[%clk 01:40:44]}
{[%emt 00:00:24]} 3. c4 {[%clk 01:41:40]} {[%emt 00:00:11]} c6 {[%clk
01:40:48]} {[%emt 00:00:26]} 4. Nc3 {[%clk 01:42:02]} {[%emt 00:00:08]} e6
{[%clk 01:40:56]} {[%emt 00:00:22]} 5. b3 {[%clk 01:42:20]} {[%emt 00:00:13]}
Nbd7 {[%clk 01:41:03]} {[%emt 00:00:23]} 6. Qc2 {[%clk 01:42:04]} {[%emt
00:00:46]} Bd6 {[%clk 01:40:45]} {[%emt 00:00:48]} 7. Bb2 {[%clk 01:42:21]}
{[%emt 00:00:14]} O-O {[%clk 01:39:51]} {[%emt 00:01:24]} 8. Be2 {[%clk
01:42:27]} {[%emt 00:00:23]} b6 {[%clk 01:38:21]} {[%emt 00:02:00]} 9. h4
{[%clk 01:30:22]} {[%emt 00:12:35]} Re8 {[%clk 00:59:41]} {[%emt 00:39:10]} 10.
cxd5 {[%clk 01:21:26]} {[%emt 00:09:26]} exd5 {[%clk 00:55:24]} {[%emt
00:04:47]} 11. g4 {[%clk 01:13:16]} {[%emt 00:08:39]} Ne5 {[%clk 00:31:28]}
{[%emt 00:24:26]} 12. g5 {[%clk 01:11:16]} {[%emt 00:02:30]} Nxf3+ {[%clk
00:29:05]} {[%emt 00:02:53]} 13. Bxf3 {[%clk 01:11:34]} {[%emt 00:00:11]} Ng4
{[%clk 00:29:00]} {[%emt 00:00:35]} 14. Ne2 {[%clk 01:03:37]} {[%emt 00:08:27]}
Bd7 {[%clk 00:20:50]} {[%emt 00:08:41]} 15. Nd4 {[%clk 00:57:43]} {[%emt
00:06:24]} Ne5 {[%clk 00:19:01]} {[%emt 00:02:19]} 16. Be2 {[%clk 00:57:48]}
{[%emt 00:00:25]} c5 {[%clk 00:14:39]} {[%emt 00:04:52]} 17. Nf5 {[%clk
00:57:44]} {[%emt 00:00:33]} Bf8 {[%clk 00:14:57]} {[%emt 00:00:13]} 18. f4
{[%clk 00:57:16]} {[%emt 00:00:59]} Nc6 {[%clk 00:12:45]} {[%emt 00:02:42]} 19.
h5 {[%clk 00:51:59]} {[%emt 00:05:46]} Nb4 {[%clk 00:10:20]} {[%emt 00:02:56]}
20. Qb1 {[%clk 00:52:17]} {[%emt 00:00:11]} Qc8 {[%clk 00:10:24]} {[%emt
00:00:25]} 21. Ng3 {[%clk 00:44:19]} {[%emt 00:08:28]} d4 {[%clk 00:10:16]}
{[%emt 00:00:39]} 22. g6 {[%clk 00:42:52]} {[%emt 00:01:57]} fxg6 {[%clk
00:09:10]} {[%emt 00:01:36]} 23. hxg6 {[%clk 00:42:33]} {[%emt 00:00:49]} h6
{[%clk 00:09:28]} {[%emt 00:00:13]} 24. a3 {[%clk 00:36:16]} {[%emt 00:06:47]}
Nd5 {[%clk 00:05:18]} {[%emt 00:04:40]} 25. Qc2 {[%clk 00:29:38]} {[%emt
00:07:08]} Nxf4 {[%clk 00:03:12]} {[%emt 00:02:36]} 26. Bc4+ {[%clk 00:26:34]}
{[%emt 00:03:34]} Be6 {[%clk 00:01:37]} {[%emt 00:02:05]} 27. O-O-O {[%clk
00:26:47]} {[%emt 00:00:17]} d3 {[%clk 00:01:55]} {[%emt 00:00:12]} 28. Qc3
{[%clk 00:26:15]} {[%emt 00:01:01]} Nxg6 {[%clk 00:00:53]} {[%emt 00:01:32]} 29.
Rxh6 {[%clk 00:24:53]} {[%emt 00:01:52]} gxh6 {[%clk 00:00:54]} {[%emt
00:00:29]} 30. Qf6 {[%clk 00:25:17]} {[%emt 00:00:06]} Qd7 {[%clk 00:00:44]}
{[%emt 00:00:41]} 31. Qxg6+ {[%clk 00:25:37]} {[%emt 00:00:10]} Bg7 {[%clk
00:01:10]} {[%emt 00:00:05]} 32. Nh5 {[%clk 00:25:48]} {[%emt 00:00:18]} 1-0

[Event "Masters Tournament (MTO)"]
[Site "Biel, Switzerland"]
[Date "2026.07.13"]
[Round "1.10"]
[White "St Pierre, Joseph"]
[Black "Shukhman, Anna"]
[Result "0-1"]
[TimeControl "100+30+30sec/move"]
[WhiteTitle "-"]
[BlackTitle "-"]
[WhiteFideId "30953472"]
[BlackFideId "54180058"]
[WhiteElo "2067"]
[BlackElo "2443"]

1. d4 {[%clk 01:40:58]} {[%emt 00:00:02]} d5 {[%clk 01:40:24]} {[%emt
00:00:36]} 2. c4 {[%clk 01:41:16]} {[%emt 00:00:12]} e6 {[%clk 01:40:50]}
{[%emt 00:00:04]} 3. Nf3 {[%clk 01:41:34]} {[%emt 00:00:12]} Nf6 {[%clk
01:41:14]} {[%emt 00:00:06]} 4. g3 {[%clk 01:41:43]} {[%emt 00:00:20]} Bb4+
{[%clk 01:41:19]} {[%emt 00:00:25]} 5. Bd2 {[%clk 01:40:16]} {[%emt 00:01:58]}
Bd6 {[%clk 01:41:40]} {[%emt 00:00:09]} 6. Nc3 {[%clk 01:39:41]} {[%emt
00:01:05]} c6 {[%clk 01:41:08]} {[%emt 00:01:01]} 7. Qb3 {[%clk 01:35:23]}
{[%emt 00:04:48]} O-O {[%clk 01:39:02]} {[%emt 00:02:37]} 8. Bg2 {[%clk
01:35:43]} {[%emt 00:00:10]} Nbd7 {[%clk 01:32:52]} {[%emt 00:06:40]} 9. O-O
{[%clk 01:33:03]} {[%emt 00:03:10]} a5 {[%clk 01:30:13]} {[%emt 00:03:09]} 10.
e4 {[%clk 01:29:01]} {[%emt 00:04:32]} dxc4 {[%clk 01:24:28]} {[%emt 00:06:16]}
11. Qxc4 {[%clk 01:29:10]} {[%emt 00:00:20]} e5 {[%clk 01:24:55]} {[%emt
00:00:03]} 12. Rad1 {[%clk 01:19:25]} {[%emt 00:10:15]} Qe7 {[%clk 01:22:35]}
{[%emt 00:02:49]} 13. h3 {[%clk 01:10:09]} {[%emt 00:09:46]} Rb8 {[%clk
01:18:55]} {[%emt 00:04:10]} 14. dxe5 {[%clk 01:06:43]} {[%emt 00:03:56]} Nxe5
{[%clk 01:19:20]} {[%emt 00:00:06]} 15. Nxe5 {[%clk 01:07:07]} {[%emt
00:00:06]} Bxe5 {[%clk 01:19:47]} {[%emt 00:00:03]} 16. f4 {[%clk 01:06:55]}
{[%emt 00:00:41]} b5 {[%clk 01:15:59]} {[%emt 00:04:18]} 17. Qe2 {[%clk
01:04:24]} {[%emt 00:03:02]} Bd4+ {[%clk 01:14:35]} {[%emt 00:01:54]} 18. Kh2
{[%clk 01:04:35]} {[%emt 00:00:19]} b4 {[%clk 01:07:17]} {[%emt 00:07:48]} 19.
Na4 {[%clk 00:56:18]} {[%emt 00:08:47]} Qa7 {[%clk 01:07:20]} {[%emt 00:00:27]}
20. Rf3 {[%clk 00:53:45]} {[%emt 00:03:03]} Ba6 {[%clk 01:01:15]} {[%emt
00:06:35]} 21. Qe1 {[%clk 00:53:59]} {[%emt 00:00:16]} Rbe8 {[%clk 00:57:29]}
{[%emt 00:04:16]} 22. e5 {[%clk 00:53:01]} {[%emt 00:01:28]} Nd5 {[%clk
00:57:46]} {[%emt 00:00:14]} 23. Bc1 {[%clk 00:52:05]} {[%emt 00:01:26]} Bb5
{[%clk 00:51:59]} {[%emt 00:06:17]} 24. Qe4 {[%clk 00:50:40]} {[%emt 00:01:55]}
Bxe5 {[%clk 00:49:08]} {[%emt 00:03:21]} 25. fxe5 {[%clk 00:50:24]} {[%emt
00:00:46]} Bxa4 {[%clk 00:49:35]} {[%emt 00:00:03]} 26. Re1 {[%clk 00:48:21]}
{[%emt 00:02:32]} Qc5 {[%clk 00:49:38]} {[%emt 00:00:27]} 27. b3 {[%clk
00:36:53]} {[%emt 00:11:59]} Bb5 {[%clk 00:49:44]} {[%emt 00:00:24]} 28. Bd2
{[%clk 00:37:19]} {[%emt 00:00:04]} Nc7 {[%clk 00:41:53]} {[%emt 00:08:21]} 29.
Rf5 {[%clk 00:26:27]} {[%emt 00:11:22]} Qd5 {[%clk 00:31:39]} {[%emt 00:10:44]}
30. Qf4 {[%clk 00:22:03]} {[%emt 00:04:53]} Qd7 {[%clk 00:30:29]} {[%emt
00:01:40]} 31. Qf2 {[%clk 00:11:41]} {[%emt 00:10:52]} Ne6 {[%clk 00:25:24]}
{[%emt 00:05:35]} 32. a3 {[%clk 00:11:37]} {[%emt 00:00:34]} c5 {[%clk
00:16:09]} {[%emt 00:09:45]} 33. axb4 {[%clk 00:10:12]} {[%emt 00:01:55]} axb4
{[%clk 00:16:35]} {[%emt 00:00:04]} 34. Be3 {[%clk 00:10:34]} {[%emt 00:00:08]}
Bc6 {[%clk 00:16:16]} {[%emt 00:00:49]} 35. Bf1 {[%clk 00:08:10]} {[%emt
00:02:54]} Bd5 {[%clk 00:13:58]} {[%emt 00:02:48]} 36. Rb1 {[%clk 00:05:52]}
{[%emt 00:02:47]} Be4 {[%clk 00:13:17]} {[%emt 00:01:12]} 37. Rc1 {[%clk
00:06:18]} {[%emt 00:00:04]} Bxf5 {[%clk 00:13:44]} {[%emt 00:00:03]} 38. Qxf5
{[%clk 00:06:43]} {[%emt 00:00:05]} Ra8 {[%clk 00:12:44]} {[%emt 00:01:30]} 39.
Bc4 {[%clk 00:04:22]} {[%emt 00:02:51]} Ra2+ {[%clk 00:12:51]} {[%emt
00:00:22]} 40. Rc2 {[%clk 00:04:42]} {[%emt 00:00:10]} Rfa8 {[%clk 00:12:04]}
{[%emt 00:01:16]} 41. Bd3 {[%clk 00:04:24]} {[%emt 00:00:49]} g6 {[%clk
00:11:31]} {[%emt 00:01:03]} 42. Qe4 {[%clk 00:04:47]} {[%emt 00:00:07]} Nd4
{[%clk 00:11:29]} {[%emt 00:00:32]} 43. Rf2 {[%clk 00:04:48]} {[%emt 00:00:29]}
Rxf2+ {[%clk 00:11:31]} {[%emt 00:00:29]} 44. Bxf2 {[%clk 00:05:12]} {[%emt
00:00:06]} Ra2 {[%clk 00:11:54]} {[%emt 00:00:06]} 45. Kg1 {[%clk 00:05:24]}
{[%emt 00:00:18]} Qxh3 {[%clk 00:11:45]} {[%emt 00:00:39]} 46. Bb1 {[%clk
00:04:32]} {[%emt 00:01:22]} Ne2+ {[%clk 00:12:08]} {[%emt 00:00:07]} 0-1